bitfinex/quotes_ETHUSD_20241103
["timestamp","ask_amount","ask_price","bid_price","bid_amount"]
[1730612580745,4.08363,2448.8,2448.3,9.8274928]
[1730612582852,4.08363,2448.8,2448.3,9.8275028]
[1730612583052,4.08363,2448.8,2448.4,5.06702028]
[1730612583258,4.08363,2448.8,2448.4,0.98275028]
[1730612583555,4.08363,2448.8,2448.3,8.99793]
[1730612584968,4.0848,2448.1,2447.7,0.85228523]
[1730612585272,6.81904749,2448.5,2447.3,1.27842785]
[1730612585273,4.87295,2448.0,2447.4,4.91515]
[1730612585563,4.08539,2447.8,2447.4,0.8292]
[1730612585720,4.08539,2447.8,2447.3,4.08611]
[1730612585916,4.08539,2447.8,2447.4,0.817238]
[1730612586519,0.7515,2447.7,2447.2,4.87917]
[1730612586722,4.08574,2447.6,2447.1,4.08645]
[1730612587044,4.08574,2447.6,2447.1,4.983038]
[1730612587756,4.83708,2447.7,2447.1,4.983038]
[1730612587960,8.92266,2447.7,2447.2,4.08626]
[1730612588335,4.08564,2447.6,2447.1,4.983038]
[1730612588534,4.08564,2447.6,2447.1,9.069428]
[1730612588760,4.08564,2447.6,2447.2,0.9069428]
[1730612589151,4.08564,2447.6,2447.1,4.08639]
[1730612590377,4.08564,2447.6,2447.1,8.17278]
[1730612590783,4.08583,2447.5,2447.1,4.08639]
[1730612590951,4.08564,2447.6,2447.1,4.08639]
[1730612591152,4.08564,2447.6,2447.2,4.494919]
[1730612594794,4.83697,2447.7,2447.2,8.581129]
[1730612595084,4.83697,2447.7,2447.2,4.494849]
[1730612596379,0.7515,2447.7,2447.2,4.494849]
[1730612596542,9.81962749,2448.2,2447.5,4.08571]
[1730612596543,0.7515,2447.9,2447.5,4.08571]
[1730612596741,0.7515,2447.9,2447.6,4.0856]
[1730612598682,0.7515,2447.9,2447.5,4.08578]
[1730612601584,0.7515,2447.9,2447.6,4.08557]
[1730612602450,0.7515,2447.9,2447.5,4.08578]
[1730612602754,0.7515,2447.9,2447.6,0.408578]
[1730612609728,4.84327,2448.3,2447.9,4.08512]
[1730612610017,0.7588,2448.3,2448.0,0.08169597]
[1730612610185,0.7588,2448.3,2448.1,4.08479]
[1730612610510,0.7588,2448.3,2448.2,0.4166486]
[1730612610687,4.843,2448.5,2448.2,0.4166486]
[1730612610870,4.843,2448.5,2448.1,4.08479]
[1730612612291,4.843,2448.5,2448.0,0.08169597]
[1730612612822,4.843,2448.5,2448.0,4.16659597]
[1730612612983,4.843,2448.5,2448.1,4.08479]
[1730612613186,0.7588,2448.5,2448.1,4.08479]
[1730612613385,0.7588,2448.5,2448.1,4.08469]
[1730612613580,4.84261,2448.7,2448.3,4.08445]
[1730612616435,4.08351,2448.9,2448.2,0.8259]
[1730612616436,0.7588,2448.9,2448.5,4.08404]
[1730612616601,0.7588,2448.9,2448.6,4.492354]
[1730612616923,4.84209,2449.1,2448.7,4.08378]
[1730612618028,8.92531,2449.1,2448.6,5.39993475]
[1730612618191,4.84202,2449.1,2448.6,5.39993475]
[1730612618531,4.84202,2449.1,2448.7,0.53999347]
[1730612622290,4.84202,2449.1,2448.7,4.62378347]
[1730612624126,4.84202,2449.1,2448.9,4.08338]
[1730612624127,0.7588,2449.1,2448.9,4.08338]
[1730612624286,0.7588,2449.1,2448.9,4.96226333]
[1730612624485,0.7588,2449.4,2448.9,4.96226333]
[1730612624723,0.7588,2449.4,2449.0,4.08329]
[1730612624941,0.7588,2449.4,2449.0,4.90919]
[1730612625091,0.7588,2449.4,2449.1,4.08311]
[1730612626256,4.84151,2449.4,2449.0,4.90918]
[1730612626464,4.84151,2449.4,2449.0,4.08328]
[1730612626624,1.17885967,2449.6,2449.2,4.08296]
[1730612626625,0.7588,2449.6,2449.2,4.08296]
[1730612627966,4.08156,2450.1,2449.7,4.08212]
[1730612628127,4.08156,2450.1,2449.6,4.08228]
[1730612628325,0.7588,2449.9,2449.5,4.08237]
[1730612628563,0.7588,2449.9,2449.5,4.08235]
[1730612628762,0.7588,2449.9,2449.6,4.08226]
[1730612628972,0.7588,2450.1,2449.7,4.898481]
[1730612629137,0.7588,2450.1,2449.7,8.980521]
[1730612629458,0.7588,2450.1,2449.7,0.816461]
[1730612629663,0.7588,2450.1,2449.9,4.08167]
[1730612630864,0.7588,2450.1,2449.7,8.1641]
[1730612631254,0.7588,2450.1,2449.7,4.08205]
[1730612631460,0.7588,2450.1,2449.8,4.08192]
[1730612631755,0.7588,2450.1,2449.7,4.08205]
[1730612632441,0.7588,2450.1,2449.7,4.89849]
[1730612635759,0.7588,2450.1,2449.7,4.08205]
[1730612637136,4.0818,2449.9,2449.4,0.8259]
[1730612637436,0.8285,2449.8,2449.4,4.08252]
[1730612640475,0.8285,2449.8,2449.5,4.08239]
[1730612640855,0.8285,2449.8,2449.4,4.08252]
[1730612642460,0.8285,2449.8,2449.4,8.16507]
[1730612642695,0.8285,2449.8,2449.5,4.08236]
[1730612644393,0.8285,2449.8,2449.6,4.08225]
[1730612645692,0.8217,2450.1,2449.6,4.1638918]
[1730612645996,0.8217,2450.1,2449.7,4.08199]
[1730612646397,0.8217,2450.1,2449.8,4.08186]
[1730612646758,0.8217,2450.1,2449.8,4.08185]
[1730612652860,4.1419541,2450.4,2449.9,0.408185]
[1730612653061,4.90301,2450.2,2449.7,4.90669]
[1730612654069,4.08156,2450.1,2449.6,4.08228]
[1730612654397,4.08156,2450.1,2449.6,8.16444]
[1730612654599,4.08156,2450.1,2449.7,4.08212]
[1730612655381,4.08156,2450.1,2449.6,4.08216]
[1730612655677,4.08156,2450.1,2449.7,0.490686]
[1730612656515,4.08156,2450.1,2449.7,4.572806]
[1730612657011,4.08155,2450.1,2449.7,4.572806]
[1730612659687,0.8217,2450.0,2449.7,0.490686]
[1730612661204,0.8217,2450.0,2449.4,4.98543147]
[1730612661409,4.08199,2449.8,2449.4,4.98543147]
[1730612661587,4.08199,2449.8,2449.4,4.08262]
[1730612669344,0.7748,2449.7,2449.4,4.08262]
[1730612670108,0.7748,2449.7,2449.3,4.08277]
[1730612671318,4.08238,2449.6,2449.1,4.89472]
[1730612671521,4.85733,2449.5,2449.1,0.79087629]
[1730612671717,0.7748,2449.3,2448.8,4.93354365]
[1730612671969,0.7748,2449.3,2448.7,6.17049048]
[1730612671970,4.08306,2449.2,2448.7,4.89549]
[1730612672128,4.08306,2449.2,2448.8,0.77369356]
[1730612672315,4.08306,2449.2,2448.8,0.77375248]
[1730612672514,4.08306,2449.2,2448.8,4.65815636]
[1730612672757,4.08306,2449.2,2448.8,4.85735044]
[1730612672932,4.08306,2449.2,2448.8,4.65815636]
[1730612673442,4.08306,2449.2,2448.5,2.02687552]
[1730612673443,0.7748,2449.0,2448.6,4.08389]
[1730612673657,0.7748,2449.0,2448.6,5.27603587]
[1730612673967,0.7748,2449.0,2448.6,5.19436541]
[1730612677626,0.7748,2449.0,2448.6,1.11047541]
[1730612677826,4.08347,2448.9,2448.5,4.08413]
[1730612678261,4.08347,2448.9,2448.3,6.07285187]
[1730612678262,4.08347,2448.9,2448.4,7.08419]
[1730612678420,4.08347,2448.9,2448.4,4.08419]
[1730612678421,0.7748,2448.8,2448.4,4.08419]
[1730612679136,0.7748,2448.8,2448.4,5.09989419]
[1730612680869,4.85855,2448.8,2448.4,1.01570419]
[1730612681170,4.85855,2448.8,2448.3,4.08435]
[1730612681879,0.7748,2448.7,2448.3,4.08435]
[1730612682613,4.85869,2448.7,2448.3,4.08435]
[1730612684636,4.85869,2448.7,2448.3,5.01893419]
[1730612686473,4.85869,2448.7,2448.3,0.93458419]
[1730612686671,8.94261,2448.7,2448.2,4.08461]
[1730612687248,8.94261,2448.7,2447.9,4.08505]
[1730612687249,4.08438,2448.4,2447.9,4.08505]
[1730612687448,1.17680187,2448.7,2447.8,4.08518]
[1730612687449,4.08466,2448.2,2447.8,4.08518]
[1730612688569,0.7748,2448.3,2447.9,4.08513]
[1730612688773,4.85926,2448.3,2447.9,4.08513]
[1730612690783,4.85926,2448.3,2447.8,4.08528]
[1730612691290,4.85926,2448.3,2447.8,8.17048]
[1730612692386,4.85926,2448.3,2447.8,9.068698]
[1730612695595,4.85926,2448.3,2447.8,4.983418]
[1730612695799,4.85926,2448.3,2447.8,9.068648]
[1730612696117,4.85926,2448.3,2447.8,4.983418]
[1730612696473,4.85926,2448.3,2447.8,9.068598]
[1730612697214,4.85926,2448.3,2447.9,4.08513]
[1730612697401,4.85926,2448.3,2447.9,5.10966299]
[1730612699977,0.7748,2448.3,2447.9,5.10966299]
[1730612700179,0.814,2448.5,2448.1,5.26151187]
[1730612700611,0.814,2448.5,2448.2,4.08452]
[1730612701409,0.814,2448.5,2448.2,5.01912319]
[1730612702911,0.814,2448.5,2448.2,4.08452]
[1730612703541,0.814,2448.5,2448.1,4.08472]
[1730612703542,4.89814,2448.5,2448.1,4.08472]
[1730612704434,0.814,2448.5,2448.1,4.08472]
[1730612705553,0.814,2448.5,2448.0,4.08493]
[1730612705836,4.91738,2448.4,2447.9,5.10954299]
[1730612706810,0.833,2448.1,2447.7,7.0853]
[1730612707003,0.833,2448.1,2447.7,4.0853]
[1730612707544,0.833,2448.1,2447.8,4.08527]
[1730612708076,0.833,2448.1,2447.9,4.08507]
[1730612708202,4.08438,2448.4,2448.0,4.901994]
[1730612708403,4.91697,2448.6,2448.0,4.901994]
[1730612708404,4.08422,2448.5,2448.0,4.08496]
[1730612709839,4.91697,2448.6,2448.0,4.08496]
[1730612710028,4.0843,2448.4,2448.0,4.08496]
[1730612710425,8.16872,2448.4,2447.9,4.08497]
[1730612710604,4.91759,2448.3,2447.8,4.08527]
[1730612711311,4.08467,2448.2,2447.8,4.08527]
[1730612711722,0.833,2448.1,2447.5,1.17680187]
[1730612712236,0.833,2448.1,2447.8,4.08522]
[1730612713012,0.833,2448.1,2447.7,4.08537]
[1730612713225,0.833,2448.1,2447.7,8.17074]
[1730612713744,0.833,2448.1,2447.7,4.08537]
[1730612713957,0.833,2448.1,2447.8,4.08524]
[1730612715233,0.833,2448.1,2447.7,4.08537]
[1730612715434,0.833,2448.1,2447.8,4.08528]
[1730612718455,0.833,2448.1,2447.8,4.1669755]
[1730612721962,0.833,2448.1,2447.8,4.08528]
[1730612728095,0.833,2448.1,2447.9,4.0851]
[1730612730276,4.08449,2448.3,2447.9,4.0851]
[1730612730508,4.87519,2448.3,2447.9,4.0851]
[1730612732821,4.87519,2448.3,2447.8,4.08528]
[1730612732822,8.95976,2448.3,2447.8,4.08528]
[1730612733124,8.95976,2448.3,2447.9,0.90854723]
[1730612733295,4.87519,2448.3,2447.9,0.1993181]
[1730612734028,4.08472,2448.2,2447.9,0.1993181]
[1730612734549,0.7907,2448.1,2447.9,0.1993181]
[1730612734829,0.7907,2448.1,2447.8,4.08522]
[1730612736088,0.7907,2448.1,2447.8,8.17041]
[1730612736287,0.7907,2448.1,2447.9,0.19937909]
[1730612736891,0.7907,2448.1,2447.9,0.19937285]
[1730612738091,4.0845,2448.3,2447.9,0.19937285]
[1730612738092,4.8752,2448.3,2447.9,0.19937285]
[1730612738294,4.8752,2448.3,2447.9,4.28449285]
[1730612738493,4.8752,2448.3,2447.9,5.14807227]
[1730612742153,4.8752,2448.3,2448.0,0.19933011]
[1730612742879,2.48665096,2448.8,2448.2,1.17680187]
[1730612743153,2.48665096,2448.8,2448.5,4.08411]
[1730612743452,1.69595096,2448.9,2448.5,4.31378358]
[1730612743751,1.69595096,2448.9,2448.6,4.08392]
[1730612744312,2.48665096,2449.0,2448.6,4.08392]
[1730612744508,2.48665096,2449.0,2448.5,4.23211]
[1730612744509,1.69595096,2448.9,2448.5,4.23211]
[1730612745213,4.08349,2448.9,2448.5,4.23211]
[1730612745850,5.77944096,2448.9,2448.5,4.23211]
[1730612746144,4.08349,2448.9,2448.5,4.23211]
[1730612747723,6.56998096,2449.0,2448.5,5.063756]
[1730612748258,6.56998096,2449.0,2448.5,4.23212]
[1730612748414,6.56998096,2449.0,2448.5,4.08412]
[1730612749159,4.08347,2448.9,2448.3,4.23237]
[1730612749330,0.7907,2448.8,2448.4,4.08428]
[1730612751757,0.7907,2448.8,2448.5,4.08413]
[1730612752056,0.7907,2448.8,2448.4,4.08428]
[1730612754724,0.7907,2448.8,2448.1,4.2327]
[1730612754920,0.8051,2448.4,2447.9,4.23298]
[1730612755125,0.8051,2448.4,2448.0,4.08483]
[1730612757240,0.8051,2448.4,2447.9,4.08498]
[1730612757241,4.08447,2448.3,2447.9,4.08498]
[1730612758015,4.08447,2448.3,2447.7,4.23334]
[1730612758016,0.8051,2448.2,2447.8,4.08529]
[1730612758621,0.8051,2448.2,2447.8,8.17049]
[1730612759550,0.8051,2448.2,2447.8,4.0852]
[1730612759941,0.8051,2448.2,2447.8,8.17042]
[1730612760819,0.8051,2448.2,2447.8,4.0852]
[1730612761932,0.8051,2448.2,2447.9,4.08512]
[1730612764372,0.8051,2448.2,2448.0,4.08495]
[1730612767529,0.8051,2448.2,2447.9,4.08511]
[1730612767726,1.69595096,2448.6,2448.2,4.08447]
[1730612768040,4.08389,2448.7,2448.3,4.08439]
[1730612768241,4.84375,2448.8,2448.3,8.16875]
[1730612768440,4.84375,2448.8,2448.3,4.08436]
[1730612768759,4.84375,2448.8,2448.3,8.16873]
[1730612769534,5.9060761,2448.8,2448.3,8.16873]
[1730612769753,5.9060761,2448.8,2448.3,4.08436]
[1730612769754,4.08391,2448.7,2448.3,4.08436]
[1730612769953,1.8224261,2448.8,2448.3,4.08434]
[1730612770288,0.7601,2448.8,2448.4,4.08422]
[1730612770441,0.7601,2448.8,2448.4,4.08421]
[1730612771064,0.7601,2448.8,2448.5,4.08405]
[1730612771273,2.45605096,2449.0,2448.7,4.08372]
[1730612771439,0.7601,2449.0,2448.7,4.08372]
[1730612774576,0.7601,2449.0,2448.8,4.0836]
[1730612775279,0.7601,2449.0,2448.7,4.90048]
[1730612776567,0.7601,2449.0,2448.7,4.90045]
[1730612779185,0.7601,2449.0,2448.7,0.81676]
[1730612779379,4.08313,2449.1,2448.3,1.17680187]
[1730612779380,4.08346,2448.9,2448.3,4.08436]
[1730612779585,0.7601,2448.6,2448.3,4.08436]
[1730612780369,4.08346,2448.9,2448.3,4.08436]
[1730612780370,4.83555,2448.8,2448.3,4.08436]
[1730612780568,4.83555,2448.8,2448.4,0.423236]
[1730612782099,4.83555,2448.8,2448.4,4.507446]
[1730612786723,4.83555,2448.8,2448.4,0.423236]
[1730612787004,4.0839,2448.7,2448.3,4.08445]
[1730612788979,4.0839,2448.7,2448.2,4.23262]
[1730612789489,4.0839,2448.7,2448.3,4.08439]
[1730612791889,0.7519,2448.8,2448.3,4.08439]
[1730612791890,4.83554,2448.8,2448.3,4.08439]
[1730612792319,4.0838,2448.7,2448.3,4.08439]
[1730612793717,4.0838,2448.7,2448.1,4.08477]
[1730612793718,4.08415,2448.5,2448.1,4.08477]
[1730612797600,4.0843,2448.4,2448.0,4.08496]
[1730612797809,0.7519,2448.6,2448.0,4.08496]
[1730612797995,4.08415,2448.5,2448.0,4.08496]
[1730612799149,4.08415,2448.5,2448.0,4.16665075]
[1730612799348,4.08415,2448.5,2448.0,8.25152075]
[1730612799550,4.08415,2448.5,2448.0,8.16983]
[1730612800126,4.08415,2448.5,2448.0,8.16972]
[1730612801845,4.08415,2448.5,2448.1,4.08479]
[1730612806559,0.7519,2448.3,2447.9,4.08501]
[1730612806769,0.7519,2448.3,2448.0,5.50056329]
[1730612806968,0.7519,2448.6,2448.2,4.08455]
[1730612809169,4.08413,2448.5,2448.1,4.08463]
[1730612809377,4.08436,2448.4,2448.0,4.08495]
[1730612809537,0.7519,2448.3,2448.0,4.08495]
[1730612809864,0.7519,2448.3,2448.0,5.0023319]
[1730612811036,0.7519,2448.3,2448.1,0.90737899]
[1730612811243,0.7519,2448.3,2448.1,0.19894663]
[1730612812155,0.7519,2448.3,2448.1,0.90762504]
[1730612812478,0.7519,2448.3,2448.1,0.19894663]
[1730612813155,0.7519,2448.3,2448.1,0.90778496]
[1730612813341,0.7519,2448.3,2448.1,1.97105751]
[1730612813666,0.7519,2448.3,2448.1,1.26221411]
[1730612813868,0.7519,2448.3,2448.1,0.19894663]
[1730612814071,0.7519,2448.3,2448.1,1.97105832]
[1730612814291,0.7519,2448.3,2448.1,1.06327662]
[1730612814495,0.7519,2448.3,2448.1,0.90789237]
[1730612814659,0.7519,2448.3,2448.1,1.97116453]
[1730612814856,0.7519,2448.3,2448.1,1.26232645]
[1730612815258,0.7519,2448.3,2448.1,0.19904983]
[1730612816891,0.7519,2448.3,2448.1,1.97108744]
[1730612817070,0.7519,2448.3,2448.1,1.2622724]
[1730612817597,0.7519,2448.3,2447.7,0.85587899]
[1730612817598,5.32007,2448.3,2447.7,0.85587899]
[1730612817940,4.83645,2448.3,2447.8,8.87935729]
[1730612818198,4.83645,2448.3,2447.9,6.05624746]
[1730612818363,4.83645,2448.3,2447.9,4.0851]
[1730612821066,4.83645,2448.3,2447.9,5.25786258]
[1730612821272,4.83645,2448.3,2448.0,0.70880488]
[1730612821583,4.83645,2448.3,2447.9,5.25786258]
[1730612822509,4.83645,2448.3,2447.9,4.0851]
[1730612823212,0.7519,2448.3,2447.9,4.0851]
[1730612823989,4.83637,2448.3,2447.9,4.0851]
[1730612824189,0.7519,2448.3,2448.0,4.08494]
[1730612825693,2.49400446,2448.8,2448.4,4.08428]
[1730612825894,2.49400446,2448.8,2448.5,4.08401]
[1730612825895,0.79,2448.8,2448.5,4.08401]
[1730612826938,0.79,2448.8,2448.4,4.08427]
[1730612827238,0.79,2448.8,2448.2,4.08454]
[1730612827542,4.08463,2448.2,2447.9,0.85587899]
[1730612827746,4.08463,2448.2,2447.9,1.97054598]
[1730612828050,5.26143187,2448.2,2447.8,0.19903875]
[1730612828344,0.79,2447.9,2447.7,1.26197309]
[1730612828522,0.79,2447.9,2447.7,0.19903875]
[1730612828705,0.79,2447.9,2447.6,2.11785208]
[1730612829032,0.79,2447.9,2447.7,0.70864979]
[1730612829408,4.08537,2447.8,2447.5,1.58043593]
[1730612829647,4.08537,2447.8,2447.4,0.85587899]
[1730612829648,4.08537,2447.8,2447.4,1.26197309]
[1730612829816,4.08548,2447.7,2447.4,1.26197309]
[1730612830341,4.08568,2447.6,2447.4,0.19903875]
[1730612830550,4.08568,2447.6,2447.2,2.11766346]
[1730612830766,4.08548,2447.7,2447.3,0.70851265]
[1730612831052,4.8759,2447.5,2447.2,1.26178447]
[1730612831287,4.086,2447.4,2447.2,0.19903875]
[1730612831554,4.086,2447.4,2446.9,1.43181849]
[1730612831555,4.08613,2447.3,2446.9,2.11745015]
[1730612831751,4.08613,2447.3,2447.0,0.70835903]
[1730612832055,4.08622,2447.3,2447.0,0.70835903]
[1730612832255,4.086,2447.4,2446.7,4.94287899]
[1730612832455,4.08621,2447.3,2446.8,6.05562721]
[1730612832607,4.08639,2447.2,2446.7,0.85587899]
[1730612832812,4.08648,2447.1,2446.6,6.20391917]
[1730612833118,4.08648,2447.1,2446.7,6.05585777]
[1730612833316,4.08648,2447.1,2446.7,4.81267504]
[1730612834212,0.79,2447.3,2446.9,4.08666]
[1730612834508,4.8758,2447.5,2447.0,4.08658]
[1730612834672,0.79,2447.5,2447.0,4.16830687]
[1730612834873,0.79,2447.5,2446.8,0.148]
[1730612834874,0.79,2447.5,2447.1,4.08642]
[1730612835533,4.87591,2447.5,2447.0,4.08662]
[1730612836203,4.87591,2447.5,2447.0,8.17324]
[1730612836406,0.79,2447.5,2447.1,4.08645]
[1730612836793,0.79,2447.5,2447.0,4.08662]
[1730612836979,0.79,2447.5,2447.0,4.918767]
[1730612837913,4.8759,2447.5,2447.0,4.918767]
[1730612838113,0.79,2447.5,2447.1,4.08636]
[1730612838506,0.79,2447.5,2447.2,4.08621]
[1730612838703,0.79,2447.5,2447.3,0.817257]
[1730612839805,4.87587,2447.5,2447.0,4.08655]
[1730612841926,4.87587,2447.5,2447.0,4.16827451]
[1730612842808,0.79,2447.5,2447.0,0.08172451]
[1730612843013,0.79,2447.5,2447.2,4.08626]
[1730612843195,0.79,2447.5,2447.1,4.08633]
[1730612843399,4.87581,2447.5,2447.1,4.91180244]
[1730612845239,4.87581,2447.5,2447.1,4.08633]
[1730612846128,0.79,2447.5,2447.1,4.08633]
[1730612846692,4.8758,2447.5,2447.1,4.08633]
[1730612847591,0.79,2447.5,2447.1,4.08633]
[1730612848529,0.79,2447.5,2447.1,8.17272]
[1730612848845,0.79,2447.5,2447.1,4.91177445]
[1730612849737,0.79,2447.5,2447.2,4.16793443]
[1730612850057,0.79,2447.5,2447.2,4.0863]
[1730612851611,0.79,2447.5,2446.8,4.23486]
[1730612851820,0.8001,2447.2,2446.7,4.08708]
[1730612852019,0.8001,2447.0,2446.6,4.08722]
[1730612852267,4.88675,2447.0,2446.6,4.08722]
[1730612852620,0.8001,2447.0,2446.7,4.08712]
[1730612854063,0.8001,2447.0,2446.7,4.904554]
[1730612854376,0.8001,2447.0,2446.3,4.08764]
[1730612854377,4.08694,2446.9,2446.3,4.08764]
[1730612854521,0.8001,2446.8,2446.4,4.08755]
[1730612854723,4.88714,2446.8,2446.3,4.08764]
[1730612854921,4.88714,2446.8,2446.4,0.408764]
[1730612855158,4.88708,2446.8,2446.4,4.496384]
[1730612855368,4.08714,2446.7,2446.4,0.408764]
[1730612855697,0.8001,2446.8,2446.4,4.496304]
[1730612856459,4.88717,2446.8,2446.3,8.17535]
[1730612856981,4.88717,2446.8,2446.0,1e-05]
[1730612856982,0.8001,2446.3,2446.0,1e-05]
[1730612857258,0.8001,2446.3,2446.0,4.08822]
[1730612857445,0.8001,2446.3,2446.0,4.920673]
[1730612859455,0.8001,2446.3,2446.1,4.08813]
[1730612860436,0.8001,2446.3,2446.0,4.920743]
[1730612862947,0.8001,2446.3,2446.0,0.832463]
[1730612863192,0.8001,2446.3,2446.0,1e-05]
[1730612863654,0.8001,2446.3,2446.0,4.0883]
[1730612865071,0.8001,2446.3,2446.1,4.08812]
[1730612866054,0.8001,2446.3,2446.0,1e-05]
[1730612866239,0.8001,2446.3,2446.0,4.0883]
[1730612867758,0.8001,2446.3,2446.0,4.905968]
[1730612868280,0.8001,2446.3,2446.1,4.08807]
[1730612869592,0.8001,2446.7,2446.4,4.08761]
[1730612870779,0.8001,2446.7,2446.3,4.08779]
[1730612871086,4.88733,2446.7,2446.2,4.08783]
[1730612871251,0.7884,2446.4,2446.0,4.08821]
[1730612872457,0.7884,2446.4,2446.1,4.08813]
[1730612872881,0.7884,2446.4,2446.2,4.08791]
[1730612873576,8.17406,2446.8,2446.0,1e-05]
[1730612873782,0.7884,2446.7,2446.4,4.08755]
[1730612873947,0.7884,2446.7,2446.5,4.08745]
[1730612875595,0.7884,2446.9,2446.6,4.0873]
[1730612876203,0.7884,2446.9,2446.4,0.408755]
[1730612876408,0.7884,2446.9,2446.6,4.08728]
[1730612876905,0.7884,2446.9,2446.5,4.08747]
[1730612878070,4.87522,2446.9,2446.5,4.08747]
[1730612878386,0.7884,2446.9,2446.5,4.08736]
[1730612879274,0.7884,2446.9,2446.5,4.9457385]
[1730612880382,0.7884,2446.9,2446.6,4.08728]
[1730612881604,4.87521,2446.9,2446.5,4.9458385]
[1730612882622,4.87521,2446.9,2446.5,9.0331985]
[1730612883116,4.87521,2446.9,2446.5,4.9457385]
[1730612883408,4.87521,2446.9,2446.5,4.08736]
[1730612884378,0.7884,2446.9,2446.5,8.17473]
[1730612885591,0.7884,2446.9,2446.5,4.08736]
[1730612887355,0.7884,2446.9,2446.3,4.08766]
[1730612887652,0.7884,2446.9,2446.5,4.08737]
[1730612887852,0.7884,2446.9,2446.6,4.08727]
[1730612888261,0.7884,2446.9,2446.7,4.08712]
[1730612888618,0.7884,2446.9,2446.5,4.31704839]
[1730612888820,0.7884,2446.9,2446.6,0.84045284]
[1730612889262,0.7884,2446.9,2446.6,4.92775284]
[1730612891271,0.7884,2446.9,2446.6,9.01505284]
[1730612891442,0.7884,2446.9,2446.6,4.92775284]
[1730612892140,0.7884,2446.9,2446.4,4.08748]
[1730612892473,4.8752,2446.9,2446.4,8.17499]
[1730612892657,4.8752,2446.9,2446.5,4.08745]
[1730612892859,0.7942,2446.7,2446.3,4.08772]
[1730612893176,0.7942,2446.7,2446.0,4.94193072]
[1730612893177,1.17990409,2446.6,2446.0,4.08821]
[1730612893405,4.8817,2446.5,2446.1,4.08811]
[1730612893895,4.8817,2446.5,2446.0,8.68540107]
[1730612894054,0.7942,2446.4,2446.0,4.59720107]
[1730612894897,4.88192,2446.4,2446.0,4.59720107]
[1730612895072,4.88192,2446.4,2446.0,4.08821]
[1730612896201,0.7942,2446.4,2446.0,4.08821]
[1730612897592,0.7942,2446.4,2446.0,8.17644]
[1730612897906,0.7942,2446.4,2446.0,8.17643]
[1730612898058,0.7942,2446.4,2446.1,4.08801]
[1730612898374,0.7942,2446.4,2446.1,4.905632]
[1730612898756,0.7942,2446.4,2446.1,0.817622]
[1730612899797,0.7942,2446.4,2446.1,4.905652]
[1730612901945,0.7541,2446.7,2446.1,5.053742]
[1730612902235,0.7541,2446.7,2446.5,4.08739]
[1730612903641,4.84125,2446.7,2446.3,4.08765]
[1730612903798,4.84125,2446.7,2446.2,4.08794]
[1730612906344,0.7541,2446.7,2446.2,4.08794]
[1730612906536,0.7541,2446.7,2446.3,4.496504]
[1730612906756,0.7541,2446.7,2446.3,4.08771]
[1730612907042,4.84131,2446.7,2446.3,4.08771]
[1730612908468,0.7541,2446.7,2446.3,4.08771]
[1730612908668,4.84126,2446.7,2446.3,4.08771]
[1730612908876,0.7541,2446.7,2446.3,4.08771]
[1730612909172,0.7541,2446.7,2446.4,4.08755]
[1730612911437,0.7541,2446.7,2446.5,4.08731]
[1730612911666,5.78579354,2447.0,2446.4,4.08763]
[1730612911866,5.78579354,2447.0,2446.5,4.08731]
[1730612911867,0.7541,2446.9,2446.5,4.08731]
[1730612912074,0.7541,2446.9,2446.6,4.0873]
[1730612914546,0.7541,2446.9,2446.6,4.08717]
[1730612915675,0.7541,2446.9,2446.6,8.17439]
[1730612915858,0.7541,2446.9,2446.6,8.17437]
[1730612916282,0.7541,2446.9,2446.6,4.08717]
[1730612916590,0.7541,2446.9,2446.6,4.99276952]
[1730612916795,0.7541,2446.9,2446.6,8.17439]
[1730612917087,0.7541,2446.9,2446.7,4.08702]
[1730612917654,0.7541,2446.9,2446.8,4.08697]
[1730612919098,0.7541,2446.9,2446.7,4.0871]
[1730612919274,0.7541,2446.9,2446.7,4.495829]
[1730612919675,0.7541,2446.9,2446.6,4.0872]
[1730612920192,0.7541,2446.9,2446.5,4.08744]
[1730612920967,0.7541,2446.9,2446.4,4.08761]
[1730612921200,0.7541,2446.9,2446.6,4.0873]
[1730612922964,4.8409,2446.9,2446.5,4.08747]
[1730612923293,0.7541,2446.9,2446.5,4.08747]
[1730612923509,0.7541,2446.9,2446.5,4.58342603]
[1730612923880,0.7541,2446.7,2446.4,4.08761]
[1730612924705,0.7541,2446.7,2446.3,4.08778]
[1730612926196,5.26715871,2446.6,2446.2,4.0879]
[1730612926399,0.7541,2446.5,2446.3,0.19912579]
[1730612928409,0.7541,2446.5,2446.2,4.08788]
[1730612928566,0.7541,2446.5,2446.3,0.19911549]
[1730612929886,0.7541,2446.5,2446.2,4.08788]
[1730612930676,0.7541,2446.5,2446.3,0.19911486]
[1730612931429,0.7541,2446.5,2446.2,4.08788]
[1730612932056,0.7541,2446.5,2446.2,8.17577]
[1730612936863,0.7541,2446.5,2446.3,4.08778]
[1730612938668,0.7541,2446.5,2446.2,4.08794]
[1730612939247,0.7541,2446.5,2446.2,8.17579]
[1730612939982,0.7541,2446.5,2446.3,4.28691023]
[1730612940274,0.7541,2446.5,2446.3,4.08779]
[1730612941490,0.7541,2446.5,2446.2,4.08785]
[1730612941673,5.325712,2446.5,2446.1,4.08811]
[1730612941882,4.84158,2446.5,2446.2,0.90849789]
[1730612942076,4.84158,2446.5,2446.2,0.19913078]
[1730612942258,4.08748,2446.5,2446.2,0.19913078]
[1730612942471,4.84403,2446.4,2446.0,5.35145488]